[Event "Titled Tuesday Blitz August 08 Late 2023"]
[White "Kilic, Eray"]
[Black "Filipets, Egor"]
[WhiteFideId "44517173"]
[BlackFideId "13503928"]
[WhiteElo "2782"]
[BlackElo "2482"]
[Result "1/2-1/2"]
[Round "3"]
[TimeControl "180+1"]
[Date "2023.08.08"]
[WhiteClock "0:00:52"]
[BlackClock "0:00:18"]
[Board "39"]

1. d4 {[%clk 0:03:00]}  f5 {[%clk 0:02:56]} 2. g3 {[%clk 0:02:59]}  Nf6 {[%clk 0:02:56]} 3. Bg2 {[%clk 0:03:00]}  g6 {[%clk 0:02:57]} 4. c4 {[%clk 0:02:58]}  Bg7 {[%clk 0:02:57]} 5. Nc3 {[%clk 0:02:59]}  O-O {[%clk 0:02:58]} 6. Nf3 {[%clk 0:02:59]}  d6 {[%clk 0:02:59]} 7. O-O {[%clk 0:02:58]}  Nh5 {[%clk 0:03:00]} 8. d5 {[%clk 0:02:58]}  f4 {[%clk 0:03:00]} 9. Qb3 {[%clk 0:02:52]}  Na6 {[%clk 0:02:59]} 10. Qa3 {[%clk 0:02:49]}  Bd7 {[%clk 0:02:55]} 11. b4 {[%clk 0:02:48]}  Qc8 {[%clk 0:02:55]} 12. Bb2 {[%clk 0:02:47]}  Bh3 {[%clk 0:02:55]} 13. Ne4 {[%clk 0:02:47]}  fxg3 {[%clk 0:02:50]} 14. fxg3 {[%clk 0:02:41]}  Bxg2 {[%clk 0:02:44]} 15. Kxg2 {[%clk 0:02:41]}  Qg4 {[%clk 0:02:45]} 16. Nf2 {[%clk 0:02:32]}  Qxc4 {[%clk 0:02:37]} 17. Bxg7 {[%clk 0:02:32]}  Nxg7 {[%clk 0:02:36]} 18. Rac1 {[%clk 0:02:29]}  Qxe2 {[%clk 0:02:23]} 19. Rfe1 {[%clk 0:02:29]}  Qb5 {[%clk 0:02:20]} 20. Rxe7 {[%clk 0:02:29]}  Qxd5 {[%clk 0:02:14]} 21. Rd1 {[%clk 0:02:20]}  Qf5 {[%clk 0:01:59]} 22. Qb3+ {[%clk 0:02:14]}  Rf7 {[%clk 0:01:50]} 23. Ng4 {[%clk 0:02:09]}  Kf8 {[%clk 0:01:24]} 24. Nh6 {[%clk 0:02:04]}  Qxf3+ {[%clk 0:01:24]} 25. Qxf3 {[%clk 0:01:58]}  Rxf3 {[%clk 0:01:25]} 26. Rde1 {[%clk 0:01:58]}  Nf5 {[%clk 0:01:19]} 27. Rxh7 {[%clk 0:01:43]}  Nxh6 {[%clk 0:01:13]} 28. Kxf3 {[%clk 0:01:39]}  Ng8 {[%clk 0:01:14]} 29. b5 {[%clk 0:01:36]}  Nc5 {[%clk 0:01:09]} 30. Rxc7 {[%clk 0:01:36]}  Re8 {[%clk 0:01:09]} 31. Rf1 {[%clk 0:01:30]}  Re7 {[%clk 0:01:00]} 32. Kg2+ {[%clk 0:01:28]}  Kg7 {[%clk 0:00:59]} 33. Rc8 {[%clk 0:01:28]}  Nf6 {[%clk 0:00:59]} 34. Rd1 {[%clk 0:01:27]}  Nce4 {[%clk 0:00:52]} 35. Rdc1 {[%clk 0:01:26]}  d5 {[%clk 0:00:42]} 36. R1c7 {[%clk 0:01:26]}  Kf7 {[%clk 0:00:35]} 37. Rxe7+ {[%clk 0:01:26]}  Kxe7 {[%clk 0:00:36]} 38. Rc7+ {[%clk 0:01:26]}  Kd6 {[%clk 0:00:37]} 39. Rxb7 {[%clk 0:01:27]}  d4 {[%clk 0:00:37]} 40. Rxa7 {[%clk 0:01:27]}  d3 {[%clk 0:00:37]} 41. Ra3 {[%clk 0:01:26]}  d2 {[%clk 0:00:30]} 42. Rd3+ {[%clk 0:01:26]}  Kc5 {[%clk 0:00:30]} 43. Kf3 {[%clk 0:01:20]}  Kc4 {[%clk 0:00:26]} 44. Ke2 {[%clk 0:01:19]}  Nd5 {[%clk 0:00:23]} 45. Rxd2 {[%clk 0:01:07]}  Nxd2 {[%clk 0:00:24]} 46. Kxd2 {[%clk 0:01:08]}  Kxb5 {[%clk 0:00:23]} 47. Kd3 {[%clk 0:01:05]}  Nb4+ {[%clk 0:00:20]} 48. Ke4 {[%clk 0:01:06]}  Nxa2 {[%clk 0:00:21]} 49. Kf4 {[%clk 0:01:06]}  Kc5 {[%clk 0:00:21]} 50. Kg5 {[%clk 0:01:06]}  Kd6 {[%clk 0:00:22]} 51. Kxg6 {[%clk 0:01:07]}  Ke7 {[%clk 0:00:22]} 52. Kg7 {[%clk 0:01:04]}  Nc3 {[%clk 0:00:19]} 53. h4 {[%clk 0:00:58]}  Ne2 {[%clk 0:00:17]} 54. g4 {[%clk 0:00:58]}  Nf4 {[%clk 0:00:17]} 55. h5 {[%clk 0:00:58]}  Ne6+ {[%clk 0:00:17]} 56. Kg8 {[%clk 0:00:56]}  Kf6 {[%clk 0:00:17]} 57. h6 {[%clk 0:00:55]}  Ng5 {[%clk 0:00:18]} 58. Kf8 {[%clk 0:00:50]}  Kg6 {[%clk 0:00:17]} 59. h7 {[%clk 0:00:51]}  Nxh7+ {[%clk 0:00:17]} 60. Ke7 {[%clk 0:00:51]}  Nf6 {[%clk 0:00:17]} 61. Ke6 {[%clk 0:00:52]}  Nxg4 {[%clk 0:00:18]} 1/2-1/2


[Site "https://www.chess.com"]

[Event "Titled Tuesday Blitz August 08 Late 2023"]
[White "Gurevich, Dmitry"]
[Black "Adewumi, Tanitoluwa"]
[WhiteFideId "2000407"]
[BlackFideId "30966396"]
[WhiteElo "2445"]
[BlackElo "2782"]
[Result "1-0"]
[Round "3"]
[TimeControl "180+1"]
[Date "2023.08.08"]
[WhiteClock "0:00:31"]
[BlackClock "0:00:01"]
[Board "40"]

1. d4 {[%clk 0:03:00]}  Nf6 {[%clk 0:02:59]} 2. c4 {[%clk 0:03:01]}  e6 {[%clk 0:02:58]} 3. Nf3 {[%clk 0:03:00]}  b6 {[%clk 0:02:55]} 4. g3 {[%clk 0:03:00]}  Ba6 {[%clk 0:02:55]} 5. b3 {[%clk 0:02:59]}  Bb4+ {[%clk 0:02:55]} 6. Bd2 {[%clk 0:02:58]}  Be7 {[%clk 0:02:56]} 7. Bg2 {[%clk 0:02:57]}  c6 {[%clk 0:02:56]} 8. Bc3 {[%clk 0:02:56]}  d5 {[%clk 0:02:56]} 9. Nbd2 {[%clk 0:02:56]}  Nbd7 {[%clk 0:02:50]} 10. Qc2 {[%clk 0:02:55]}  O-O {[%clk 0:02:50]} 11. e4 {[%clk 0:02:55]}  dxe4 {[%clk 0:02:41]} 12. Nxe4 {[%clk 0:02:54]}  Rc8 {[%clk 0:02:35]} 13. Ne5 {[%clk 0:02:42]}  c5 {[%clk 0:02:21]} 14. Nc6 {[%clk 0:02:35]}  Rxc6 {[%clk 0:02:17]} 15. Nxf6+ {[%clk 0:02:35]}  Bxf6 {[%clk 0:02:02]} 16. Bxc6 {[%clk 0:02:34]}  cxd4 {[%clk 0:02:03]} 17. Bb2 {[%clk 0:02:27]}  Ne5 {[%clk 0:00:28]} 18. Bg2 {[%clk 0:02:25]}  d3 {[%clk 0:00:25]} 19. Qd2 {[%clk 0:02:24]}  Bxc4 {[%clk 0:00:25]} 20. O-O {[%clk 0:02:18]}  Ba6 {[%clk 0:00:22]} 21. Rfe1 {[%clk 0:02:15]}  Nd7 {[%clk 0:00:20]} 22. Bxf6 {[%clk 0:02:03]}  Qxf6 {[%clk 0:00:18]} 23. Rac1 {[%clk 0:01:58]}  e5 {[%clk 0:00:13]} 24. Rc6 {[%clk 0:01:48]}  Qd8 {[%clk 0:00:09]} 25. b4 {[%clk 0:01:41]}  Bb5 {[%clk 0:00:09]} 26. Rc3 {[%clk 0:01:33]}  Qe7 {[%clk 0:00:06]} 27. a3 {[%clk 0:01:32]}  f5 {[%clk 0:00:05]} 28. Rc7 {[%clk 0:01:14]}  e4 {[%clk 0:00:01]} 29. Rxa7 {[%clk 0:01:10]}  Qd6 {[%clk 0:00:02]} 30. a4 {[%clk 0:01:05]}  Bc4 {[%clk 0:00:02]} 31. Rc1 {[%clk 0:01:02]}  Ne5 {[%clk 0:00:02]} 32. a5 {[%clk 0:00:52]}  bxa5 {[%clk 0:00:02]} 33. Rxa5 {[%clk 0:00:49]}  g5 {[%clk 0:00:01]} 34. Rxe5 {[%clk 0:00:46]}  Qxe5 {[%clk 0:00:02]} 35. Rxc4 {[%clk 0:00:46]}  Rb8 {[%clk 0:00:03]} 36. Qxg5+ {[%clk 0:00:42]}  Kh8 {[%clk 0:00:03]} 37. h4 {[%clk 0:00:36]}  Rg8 {[%clk 0:00:02]} 38. Qe3 {[%clk 0:00:32]}  h5 {[%clk 0:00:01]} 39. Qh6# {[%clk 0:00:31]} 1-0


[Site "https://www.chess.com"]

[Event "Titled Tuesday Blitz August 08 Late 2023"]
[White "Hoffmann, Asa"]
[Black "Fier, Alexandr"]
[WhiteFideId "2001470"]
[BlackFideId "2107139"]
[WhiteElo "2367"]
[BlackElo "2776"]
[Result "0-1"]
[Round "3"]
[TimeControl "180+1"]
[Date "2023.08.08"]
[WhiteClock "0:00:20"]
[BlackClock "0:01:49"]
[Board "41"]

1. d4 {[%clk 0:02:55]}  Nf6 {[%clk 0:03:00]} 2. Bg5 {[%clk 0:02:55]}  Ne4 {[%clk 0:02:59]} 3. Bf4 {[%clk 0:02:54]}  g5 {[%clk 0:02:59]} 4. Bc1 {[%clk 0:02:53]}  g4 {[%clk 0:03:00]} 5. Nd2 {[%clk 0:02:51]}  d5 {[%clk 0:02:59]} 6. Nxe4 {[%clk 0:02:48]}  dxe4 {[%clk 0:03:00]} 7. Bf4 {[%clk 0:02:47]}  Bf5 {[%clk 0:03:00]} 8. e3 {[%clk 0:02:47]}  e6 {[%clk 0:03:00]} 9. c3 {[%clk 0:02:45]}  Bd6 {[%clk 0:03:01]} 10. Ne2 {[%clk 0:02:44]}  Nd7 {[%clk 0:03:01]} 11. Qb3 {[%clk 0:02:41]}  Qc8 {[%clk 0:02:57]} 12. h3 {[%clk 0:02:33]}  gxh3 {[%clk 0:02:56]} 13. gxh3 {[%clk 0:02:30]}  Nf6 {[%clk 0:02:56]} 14. Bxd6 {[%clk 0:02:22]}  cxd6 {[%clk 0:02:56]} 15. Ng3 {[%clk 0:02:21]}  Bg6 {[%clk 0:02:56]} 16. Bb5+ {[%clk 0:02:13]}  Kf8 {[%clk 0:02:56]} 17. h4 {[%clk 0:02:13]}  h5 {[%clk 0:02:56]} 18. O-O-O {[%clk 0:02:04]}  a6 {[%clk 0:02:56]} 19. Be2 {[%clk 0:02:04]}  b5 {[%clk 0:02:57]} 20. Kb1 {[%clk 0:02:03]}  Qc6 {[%clk 0:02:56]} 21. c4 {[%clk 0:02:03]}  bxc4 {[%clk 0:02:45]} 22. Bxc4 {[%clk 0:02:00]}  Ke7 {[%clk 0:02:42]} 23. Rc1 {[%clk 0:02:00]}  Rhb8 {[%clk 0:02:42]} 24. Qa3 {[%clk 0:01:58]}  Qb6 {[%clk 0:02:40]} 25. Ne2 {[%clk 0:01:51]}  a5 {[%clk 0:02:39]} 26. Nf4 {[%clk 0:01:50]}  Bf5 {[%clk 0:02:36]} 27. Rc2 {[%clk 0:01:48]}  Ra7 {[%clk 0:02:27]} 28. Rhc1 {[%clk 0:01:45]}  Bg4 {[%clk 0:02:24]} 29. Be2 {[%clk 0:01:35]}  Bxe2 {[%clk 0:02:04]} 30. Nxe2 {[%clk 0:01:33]}  Nd5 {[%clk 0:02:00]} 31. Rc6 {[%clk 0:01:31]}  Qb4 {[%clk 0:02:00]} 32. Qxb4 {[%clk 0:01:28]}  axb4 {[%clk 0:01:59]} 33. Ng3 {[%clk 0:01:20]}  f5 {[%clk 0:01:56]} 34. Nxh5 {[%clk 0:01:19]}  Rh8 {[%clk 0:01:56]} 35. Nf4 {[%clk 0:01:18]}  Nxf4 {[%clk 0:01:55]} 36. exf4 {[%clk 0:01:17]}  Rxh4 {[%clk 0:01:55]} 37. Rc7+ {[%clk 0:01:13]}  Rxc7 {[%clk 0:01:55]} 38. Rxc7+ {[%clk 0:01:13]}  Kd8 {[%clk 0:01:54]} 39. Rc4 {[%clk 0:01:03]}  Rxf4 {[%clk 0:01:52]} 40. Rxb4 {[%clk 0:01:02]}  Rxf2 {[%clk 0:01:53]} 41. Kc1 {[%clk 0:01:02]}  e3 {[%clk 0:01:53]} 42. Kd1 {[%clk 0:01:02]}  f4 {[%clk 0:01:54]} 43. Rb3 {[%clk 0:00:58]}  Rd2+ {[%clk 0:01:48]} 44. Ke1 {[%clk 0:00:58]}  Rxd4 {[%clk 0:01:49]} 45. Ke2 {[%clk 0:00:57]}  e5 {[%clk 0:01:50]} 46. Rd3 {[%clk 0:00:31]}  Rxd3 {[%clk 0:01:46]} 47. Kxd3 {[%clk 0:00:31]}  d5 {[%clk 0:01:47]} 48. b4 {[%clk 0:00:27]}  e4+ {[%clk 0:01:48]} 49. Ke2 {[%clk 0:00:20]}  d4 {[%clk 0:01:49]} 0-1


[Site "https://www.chess.com"]

[Event "Titled Tuesday Blitz August 08 Late 2023"]
[White "Schwabeneder, Florian"]
[Black "Kramnik, Vladimir"]
[WhiteFideId "1626191"]
[BlackFideId "4101588"]
[WhiteElo "2628"]
[BlackElo "2974"]
[Result "0-1"]
[Round "3"]
[TimeControl "180+1"]
[Date "2023.08.08"]
[WhiteClock "0:00:00"]
[BlackClock "0:00:06"]
[Board "43"]

1. e4 {[%clk 0:03:00]}  c5 {[%clk 0:02:59]} 2. Nf3 {[%clk 0:03:00]}  e6 {[%clk 0:02:57]} 3. b3 {[%clk 0:03:00]}  a6 {[%clk 0:02:56]} 4. Bb2 {[%clk 0:02:58]}  d5 {[%clk 0:02:55]} 5. exd5 {[%clk 0:02:55]}  exd5 {[%clk 0:02:56]} 6. Qe2+ {[%clk 0:02:52]}  Be6 {[%clk 0:02:50]} 7. g3 {[%clk 0:02:50]}  Nc6 {[%clk 0:02:50]} 8. Bg2 {[%clk 0:02:50]}  Nh6 {[%clk 0:02:46]} 9. d4 {[%clk 0:02:41]}  Nf5 {[%clk 0:02:38]} 10. O-O {[%clk 0:02:17]}  Nfxd4 {[%clk 0:02:31]} 11. Nxd4 {[%clk 0:02:16]}  cxd4 {[%clk 0:02:19]} 12. c3 {[%clk 0:02:07]}  Be7 {[%clk 0:02:05]} 13. cxd4 {[%clk 0:02:04]}  O-O {[%clk 0:02:05]} 14. Nd2 {[%clk 0:02:04]}  Re8 {[%clk 0:02:04]} 15. Nf3 {[%clk 0:02:03]}  Bf8 {[%clk 0:01:53]} 16. Qd2 {[%clk 0:01:47]}  f6 {[%clk 0:01:53]} 17. Rfe1 {[%clk 0:01:44]}  Qd7 {[%clk 0:01:52]} 18. Re3 {[%clk 0:01:41]}  Rac8 {[%clk 0:01:47]} 19. a3 {[%clk 0:01:35]}  Bh3 {[%clk 0:01:42]} 20. Rae1 {[%clk 0:01:29]}  Bxg2 {[%clk 0:01:41]} 21. Kxg2 {[%clk 0:01:30]}  Rxe3 {[%clk 0:01:36]} 22. Rxe3 {[%clk 0:01:25]}  Ne7 {[%clk 0:01:30]} 23. Rc3 {[%clk 0:01:15]}  g5 {[%clk 0:01:30]} 24. Rxc8 {[%clk 0:01:09]}  Nxc8 {[%clk 0:01:27]} 25. h3 {[%clk 0:00:57]}  Nd6 {[%clk 0:01:25]} 26. a4 {[%clk 0:00:57]}  Ne4 {[%clk 0:01:22]} 27. Qc2 {[%clk 0:00:55]}  b5 {[%clk 0:01:14]} 28. Ne1 {[%clk 0:00:45]}  bxa4 {[%clk 0:01:04]} 29. bxa4 {[%clk 0:00:45]}  Nd6 {[%clk 0:00:45]} 30. Ba3 {[%clk 0:00:39]}  Nc4 {[%clk 0:00:42]} 31. Bxf8 {[%clk 0:00:38]}  Kxf8 {[%clk 0:00:43]} 32. Nd3 {[%clk 0:00:38]}  Qf5 {[%clk 0:00:39]} 33. Qe2 {[%clk 0:00:32]}  a5 {[%clk 0:00:29]} 34. Nc5 {[%clk 0:00:32]}  Nd6 {[%clk 0:00:18]} 35. Qa6 {[%clk 0:00:29]}  Ne4 {[%clk 0:00:18]} 36. Qe2 {[%clk 0:00:20]}  Kg7 {[%clk 0:00:14]} 37. Nb3 {[%clk 0:00:15]}  Qd7 {[%clk 0:00:12]} 38. Qb5 {[%clk 0:00:03]}  Qxb5 {[%clk 0:00:10]} 39. axb5 {[%clk 0:00:04]}  a4 {[%clk 0:00:10]} 40. b6 {[%clk 0:00:03]}  Nd6 {[%clk 0:00:09]} 41. Na5 {[%clk 0:00:02]}  a3 {[%clk 0:00:09]} 42. Nb3 {[%clk 0:00:01]}  a2 {[%clk 0:00:09]} 43. Kf3 {[%clk 0:00:02]}  f5 {[%clk 0:00:08]} 44. Ke2 {[%clk 0:00:02]}  Kf6 {[%clk 0:00:07]} 45. Kd3 {[%clk 0:00:03]}  g4 {[%clk 0:00:08]} 46. h4 {[%clk 0:00:03]}  f4 {[%clk 0:00:08]} 47. Kc3 {[%clk 0:00:01]}  fxg3 {[%clk 0:00:07]} 48. fxg3 {[%clk 0:00:02]}  Kf5 {[%clk 0:00:07]} 49. Kb2 {[%clk 0:00:03]}  Ke4 {[%clk 0:00:07]} 50. Nc5+ {[%clk 0:00:02]}  Kf3 {[%clk 0:00:07]} 51. b7 {[%clk 0:00:03]}  Nxb7 {[%clk 0:00:06]} 52. Nxb7 {[%clk 0:00:04]}  Kxg3 {[%clk 0:00:06]} 53. Nd8 {[%clk 0:00:03]}  Kf2 {[%clk 0:00:05]} 54. Ne6 {[%clk 0:00:04]}  g3 {[%clk 0:00:06]} 55. Nf4 {[%clk 0:00:03]}  g2 {[%clk 0:00:06]} 56. Nxg2 {[%clk 0:00:02]}  Kxg2 {[%clk 0:00:06]} 57. Kxa2 {[%clk 0:00:02]}  Kf3 {[%clk 0:00:05]} 58. Kb3 {[%clk 0:00:03]}  Ke4 {[%clk 0:00:06]} 59. Kc3 {[%clk 0:00:00]}  h5 {[%clk 0:00:06]} 0-1


[Site "https://www.chess.com"]

[Event "Titled Tuesday Blitz August 08 Late 2023"]
[White "Elsa167"]
[Black "Di Berardino, Diego Rafael"]
[BlackFideId "2105446"]
[WhiteElo "2903"]
[BlackElo "2618"]
[Result "1-0"]
[Round "3"]
[TimeControl "180+1"]
[Date "2023.08.08"]
[WhiteClock "0:02:25"]
[BlackClock "0:00:00"]
[Board "44"]

1. d4 {[%clk 0:03:00]}  Nf6 {[%clk 0:02:59]} 2. c4 {[%clk 0:03:01]}  g6 {[%clk 0:02:57]} 3. Nc3 {[%clk 0:03:01]}  Bg7 {[%clk 0:02:57]} 4. e4 {[%clk 0:03:02]}  d6 {[%clk 0:02:57]} 5. h3 {[%clk 0:03:02]}  O-O {[%clk 0:02:57]} 6. Be3 {[%clk 0:03:03]}  c5 {[%clk 0:02:47]} 7. Nf3 {[%clk 0:03:02]}  cxd4 {[%clk 0:02:46]} 8. Nxd4 {[%clk 0:03:03]}  b6 {[%clk 0:02:42]} 9. Qd2 {[%clk 0:03:02]}  Bb7 {[%clk 0:02:42]} 10. f3 {[%clk 0:03:03]}  Nbd7 {[%clk 0:02:40]} 11. Bh6 {[%clk 0:03:02]}  Bxh6 {[%clk 0:02:32]} 12. Qxh6 {[%clk 0:03:03]}  Rc8 {[%clk 0:02:32]} 13. h4 {[%clk 0:03:03]}  Ne5 {[%clk 0:02:28]} 14. h5 {[%clk 0:03:03]}  Nxc4 {[%clk 0:02:23]} 15. hxg6 {[%clk 0:02:59]}  e6 {[%clk 0:00:25]} 16. g7 {[%clk 0:02:58]}  Re8 {[%clk 0:00:24]} 17. g4 {[%clk 0:02:58]}  Ne5 {[%clk 0:00:07]} 18. g5 {[%clk 0:02:56]}  Ned7 {[%clk 0:00:07]} 19. gxf6 {[%clk 0:02:53]}  Nxf6 {[%clk 0:00:07]} 20. e5 {[%clk 0:02:34]}  dxe5 {[%clk 0:00:07]} 21. Bd3 {[%clk 0:02:34]}  e4 {[%clk 0:00:00]} 22. Nxe4 {[%clk 0:02:25]} 1-0


[Site "https://www.chess.com"]

[Event "Titled Tuesday Blitz August 08 Late 2023"]
[White "Rostomyan, Mikayel"]
[Black "Ozen, Deniz"]
[WhiteFideId "13313754"]
[BlackFideId "6349196"]
[WhiteElo "2605"]
[BlackElo "2840"]
[Result "0-1"]
[Round "3"]
[TimeControl "180+1"]
[Date "2023.08.08"]
[WhiteClock "0:01:53"]
[BlackClock "0:02:27"]
[Board "45"]

1. d4 {[%clk 0:03:00]}  Nf6 {[%clk 0:02:59]} 2. Nf3 {[%clk 0:03:00]}  d5 {[%clk 0:02:59]} 3. c4 {[%clk 0:03:00]}  c6 {[%clk 0:03:00]} 4. e3 {[%clk 0:02:59]}  Bg4 {[%clk 0:02:59]} 5. Qb3 {[%clk 0:02:50]}  Bxf3 {[%clk 0:02:51]} 6. Qxb7 {[%clk 0:02:42]}  Nbd7 {[%clk 0:02:52]} 7. gxf3 {[%clk 0:02:41]}  e5 {[%clk 0:02:52]} 8. Qxc6 {[%clk 0:02:30]}  exd4 {[%clk 0:02:52]} 9. cxd5 {[%clk 0:02:12]}  Rc8 {[%clk 0:02:49]} 10. Qa4 {[%clk 0:02:11]}  Rxc1+ {[%clk 0:02:48]} 11. Kd2 {[%clk 0:02:09]}  Qc7 {[%clk 0:02:30]} 12. Bb5 {[%clk 0:01:53]}  Rxh1 {[%clk 0:02:27]} 0-1


[Site "https://www.chess.com"]

[Event "Titled Tuesday Blitz August 08 Late 2023"]
[White "Ballester Llagaria, Luis Eduardo"]
[Black "Morefield, Jason"]
[WhiteFideId "2297620"]
[BlackFideId "30920825"]
[WhiteElo "2547"]
[BlackElo "2704"]
[Result "0-1"]
[Round "3"]
[TimeControl "180+1"]
[Date "2023.08.08"]
[WhiteClock "0:00:02"]
[BlackClock "0:00:11"]
[Board "51"]

1. e4 {[%clk 0:03:00]}  c5 {[%clk 0:02:58]} 2. Nc3 {[%clk 0:02:59]}  Nc6 {[%clk 0:02:58]} 3. Bb5 {[%clk 0:02:59]}  Nd4 {[%clk 0:02:58]} 4. Nf3 {[%clk 0:02:59]}  a6 {[%clk 0:02:57]} 5. Bd3 {[%clk 0:02:57]}  g6 {[%clk 0:02:57]} 6. O-O {[%clk 0:02:57]}  Bg7 {[%clk 0:02:57]} 7. Nxd4 {[%clk 0:02:57]}  cxd4 {[%clk 0:02:55]} 8. Ne2 {[%clk 0:02:58]}  e6 {[%clk 0:02:54]} 9. c3 {[%clk 0:02:58]}  dxc3 {[%clk 0:02:53]} 10. dxc3 {[%clk 0:02:59]}  Ne7 {[%clk 0:02:53]} 11. f4 {[%clk 0:02:58]}  f5 {[%clk 0:02:53]} 12. e5 {[%clk 0:02:57]}  b6 {[%clk 0:02:43]} 13. Nd4 {[%clk 0:02:53]}  Bb7 {[%clk 0:02:43]} 14. b3 {[%clk 0:02:26]}  Kf7 {[%clk 0:02:15]} 15. Ba3 {[%clk 0:02:26]}  Nd5 {[%clk 0:02:15]} 16. Qd2 {[%clk 0:02:07]}  b5 {[%clk 0:02:09]} 17. c4 {[%clk 0:02:04]}  bxc4 {[%clk 0:02:06]} 18. bxc4 {[%clk 0:02:05]}  Ne7 {[%clk 0:01:58]} 19. Rab1 {[%clk 0:02:00]}  Bc6 {[%clk 0:01:53]} 20. Bd6 {[%clk 0:01:33]}  Bf8 {[%clk 0:01:38]} 21. Qf2 {[%clk 0:01:20]}  Qa5 {[%clk 0:01:03]} 22. Qh4 {[%clk 0:01:13]}  Qc3 {[%clk 0:00:52]} 23. Nxc6 {[%clk 0:00:45]}  Nxc6 {[%clk 0:00:48]} 24. Rb7 {[%clk 0:00:40]}  Qd4+ {[%clk 0:00:22]} 25. Kh1 {[%clk 0:00:21]}  Qxd3 {[%clk 0:00:20]} 26. Rxd7+ {[%clk 0:00:18]}  Ke8 {[%clk 0:00:19]} 27. Re1 {[%clk 0:00:02]}  Kxd7 {[%clk 0:00:18]} 28. Qf6 {[%clk 0:00:02]}  Be7 {[%clk 0:00:13]} 29. Bxe7 {[%clk 0:00:02]}  Nxe7 {[%clk 0:00:14]} 30. Qh4 {[%clk 0:00:02]}  Rab8 {[%clk 0:00:14]} 31. Qf2 {[%clk 0:00:03]}  Rb1 {[%clk 0:00:14]} 32. h3 {[%clk 0:00:03]}  Rxe1+ {[%clk 0:00:14]} 33. Qxe1 {[%clk 0:00:04]}  Qxc4 {[%clk 0:00:13]} 34. Qa5 {[%clk 0:00:05]}  Nd5 {[%clk 0:00:11]} 35. Qxa6 {[%clk 0:00:02]}  Qxa6 {[%clk 0:00:11]} 0-1


[Site "https://www.chess.com"]

[Event "Titled Tuesday Blitz August 08 Late 2023"]
[White "Papayan, Oleg"]
[Black "Zeynalli, Rashad"]
[WhiteFideId "4193911"]
[BlackFideId "13403320"]
[WhiteElo "2519"]
[BlackElo "2655"]
[Result "1-0"]
[Round "3"]
[TimeControl "180+1"]
[Date "2023.08.08"]
[WhiteClock "0:00:04"]
[BlackClock "0:00:07"]
[Board "52"]

1. e4 {[%clk 0:03:00]}  c6 {[%clk 0:03:00]} 2. Nc3 {[%clk 0:03:00]}  d5 {[%clk 0:03:00]} 3. Nf3 {[%clk 0:03:01]}  Bg4 {[%clk 0:02:59]} 4. Qe2 {[%clk 0:03:01]}  e6 {[%clk 0:02:52]} 5. exd5 {[%clk 0:03:01]}  cxd5 {[%clk 0:02:52]} 6. Qb5+ {[%clk 0:03:02]}  Nd7 {[%clk 0:02:41]} 7. Qxb7 {[%clk 0:03:02]}  Bxf3 {[%clk 0:02:39]} 8. gxf3 {[%clk 0:03:03]}  Rb8 {[%clk 0:02:37]} 9. Qxa7 {[%clk 0:03:02]}  Bc5 {[%clk 0:02:37]} 10. Qa6 {[%clk 0:03:00]}  Qh4 {[%clk 0:02:30]} 11. Nd1 {[%clk 0:02:54]}  Ne7 {[%clk 0:02:13]} 12. c3 {[%clk 0:02:54]}  e5 {[%clk 0:02:12]} 13. Bb5 {[%clk 0:02:52]}  h5 {[%clk 0:01:59]} 14. Qa4 {[%clk 0:02:45]}  Qxa4 {[%clk 0:01:49]} 15. Bxa4 {[%clk 0:02:46]}  Kd8 {[%clk 0:01:46]} 16. b4 {[%clk 0:02:25]}  Ba7 {[%clk 0:01:38]} 17. Rg1 {[%clk 0:02:18]}  Ng6 {[%clk 0:01:34]} 18. Bxd7 {[%clk 0:02:08]}  Kxd7 {[%clk 0:01:34]} 19. d3 {[%clk 0:01:49]}  d4 {[%clk 0:01:29]} 20. a3 {[%clk 0:01:21]}  dxc3 {[%clk 0:01:28]} 21. Nxc3 {[%clk 0:01:19]}  Bd4 {[%clk 0:01:29]} 22. Bb2 {[%clk 0:01:07]}  Nf4 {[%clk 0:01:26]} 23. Kd2 {[%clk 0:01:06]}  g6 {[%clk 0:01:20]} 24. Na4 {[%clk 0:01:05]}  Ne6 {[%clk 0:00:37]} 25. Bxd4 {[%clk 0:00:37]}  Nxd4 {[%clk 0:00:36]} 26. Nc5+ {[%clk 0:00:38]}  Ke7 {[%clk 0:00:34]} 27. Rg3 {[%clk 0:00:19]}  h4 {[%clk 0:00:34]} 28. Rh3 {[%clk 0:00:19]}  Rhc8 {[%clk 0:00:30]} 29. Kc3 {[%clk 0:00:13]}  g5 {[%clk 0:00:22]} 30. f4 {[%clk 0:00:12]}  Ne2+ {[%clk 0:00:16]} 31. Kc4 {[%clk 0:00:12]}  Nxf4 {[%clk 0:00:16]} 32. Re3 {[%clk 0:00:13]}  f6 {[%clk 0:00:17]} 33. d4 {[%clk 0:00:12]}  Ng6 {[%clk 0:00:15]} 34. dxe5 {[%clk 0:00:12]}  Nxe5+ {[%clk 0:00:16]} 35. Kb3 {[%clk 0:00:13]}  Rxc5 {[%clk 0:00:15]} 36. a4 {[%clk 0:00:12]}  Rc4 {[%clk 0:00:15]} 37. b5 {[%clk 0:00:12]}  Rd4 {[%clk 0:00:15]} 38. Rc1 {[%clk 0:00:09]}  Ra8 {[%clk 0:00:14]} 39. Rc7+ {[%clk 0:00:09]}  Kd6 {[%clk 0:00:14]} 40. Rb7 {[%clk 0:00:08]}  Raxa4 {[%clk 0:00:14]} 41. Rb6+ {[%clk 0:00:09]}  Kc5 {[%clk 0:00:13]} 42. Rxf6 {[%clk 0:00:09]}  Rdb4+ {[%clk 0:00:13]} 43. Kc3 {[%clk 0:00:09]}  Ra3+ {[%clk 0:00:12]} 44. Kc2 {[%clk 0:00:10]}  Rxe3 {[%clk 0:00:11]} 45. fxe3 {[%clk 0:00:09]}  Rxb5 {[%clk 0:00:11]} 46. Rf5 {[%clk 0:00:10]}  Kc4 {[%clk 0:00:10]} 47. Rxg5 {[%clk 0:00:11]}  Nf3 {[%clk 0:00:05]} 48. Rg4+ {[%clk 0:00:11]}  Kd5 {[%clk 0:00:05]} 49. Rf4 {[%clk 0:00:10]}  Ke5 {[%clk 0:00:03]} 50. Rxf3 {[%clk 0:00:10]}  Rc5+ {[%clk 0:00:03]} 51. Kd3 {[%clk 0:00:10]}  Ra5 {[%clk 0:00:03]} 52. Rf4 {[%clk 0:00:09]}  Ra3+ {[%clk 0:00:03]} 53. Ke2 {[%clk 0:00:08]}  Ra2+ {[%clk 0:00:04]} 54. Kf3 {[%clk 0:00:08]}  Rxh2 {[%clk 0:00:05]} 55. Re4+ {[%clk 0:00:09]}  Kf5 {[%clk 0:00:05]} 56. Rf4+ {[%clk 0:00:09]}  Kg5 {[%clk 0:00:05]} 57. Rg4+ {[%clk 0:00:08]}  Kh5 {[%clk 0:00:05]} 58. Rg8 {[%clk 0:00:08]}  Rh1 {[%clk 0:00:06]} 59. e4 {[%clk 0:00:08]}  Rf1+ {[%clk 0:00:06]} 60. Ke2 {[%clk 0:00:05]}  Rf4 {[%clk 0:00:06]} 61. Ke3 {[%clk 0:00:05]}  Rf6 {[%clk 0:00:05]} 62. e5 {[%clk 0:00:06]}  Re6 {[%clk 0:00:06]} 63. Kf4 {[%clk 0:00:06]}  h3 {[%clk 0:00:06]} 64. Kf5 {[%clk 0:00:07]}  Rh6 {[%clk 0:00:06]} 65. e6 {[%clk 0:00:05]}  h2 {[%clk 0:00:06]} 66. e7 {[%clk 0:00:05]}  h1=Q {[%clk 0:00:05]} 67. e8=Q+ {[%clk 0:00:05]}  Kh4 {[%clk 0:00:05]} 68. Rg4+ {[%clk 0:00:03]}  Kh3 {[%clk 0:00:06]} 69. Qe3+ {[%clk 0:00:03]}  Kh2 {[%clk 0:00:07]} 70. Qg3# {[%clk 0:00:04]} 1-0


[Site "https://www.chess.com"]